Workbook

Sheet Anasayfa
B1: Kadrolu Öğretmenlerin Ek Ders Ücreti Hesaplama Programı-V.1.0
B2: Maaş Katsayısı | C2: =VLOOKUP(H2,Katsayı!A2:B400,2) -> 0.165786 | F2: Ait Olduğu Ay/Yıl | H2: 2021-01-01
B3: Gelir Vergisi % | C3: 0.15
B4: Damga Vergisi(Binde) | C4: 7.59
B6: EK DERS ÜCRETİ TİPİ | C6: EK DERS SAATİ | D6: BRÜT EKDERS | E6: GELİR VERGİSİ | F6: DAMGA VERGİSİ | G6: KESİNTİ TOPLAMI | H6: NET EKDERS
B7: Gündüz | C7: 76 | D7: =ROUND((VLOOKUP($B$7:$B$31,Kodlar!$A$2:$B$25,2,)*C7*$C$2),2) -> 1763.96 | E7: =ROUND((D7*$C$3),2) -> 264.59 | F7: =ROUND(((D7*$C$4)/1000),2) -> 13.39 | G7: =SUM(E7:F7) -> 277.98 | H7: =D7-G7 -> 1485.98
B8: Gece | D8: =ROUND((VLOOKUP($B$7:$B$31,Kodlar!$A$2:$B$25,2,)*C8*$C$2),2) -> 0 | E8: =ROUND((D8*$C$3),2) -> 0 | F8: =ROUND(((D8*$C$4)/1000),2) -> 0 | G8: =SUM(E8:F8) -> 0 | H8: =D8-G8 -> 0
B9: Gündüz (Yüksek Lisans) | D9: =ROUND((VLOOKUP($B$7:$B$31,Kodlar!$A$2:$B$25,2,)*C9*$C$2),2) -> 0 | E9: =ROUND((D9*$C$3),2) -> 0 | F9: =ROUND(((D9*$C$4)/1000),2) -> 0 | G9: =SUM(E9:F9) -> 0 | H9: =D9-G9 -> 0
B10: %25 Fazla Gündüz | D10: =ROUND((VLOOKUP($B$7:$B$31,Kodlar!$A$2:$B$25,2,)*C10*$C$2),2) -> 0 | E10: 0 | F10: 0 | G10: 0 | H10: 0
B11: %25 Fazla Gece | D11: =ROUND((VLOOKUP($B$7:$B$31,Kodlar!$A$2:$B$25,2,)*C11*$C$2),2) -> 0 | E11: 0 | F11: 0 | G11: 0 | H11: 0
B12: Belleticilik | D12: =ROUND((VLOOKUP($B$7:$B$31,Kodlar!$A$2:$B$25,2,)*C12*$C$2),2) -> 0 | E12: 0 | F12: 0 | G12: 0 | H12: 0
B13: Sınav Görevi | D13: =ROUND((VLOOKUP($B$7:$B$31,Kodlar!$A$2:$B$25,2,)*C13*$C$2),2) -> 0 | E13: 0 | F13: 0 | G13: 0 | H13: 0
B14: Egzersiz | D14: =ROUND((VLOOKUP($B$7:$B$31,Kodlar!$A$2:$B$25,2,)*C14*$C$2),2) -> 0 | E14: 0 | F14: 0 | G14: 0 | H14: 0
B15: Hizmetiçi | D15: =ROUND((VLOOKUP($B$7:$B$31,Kodlar!$A$2:$B$25,2,)*C15*$C$2),2) -> 0 | E15: 0 | F15: 0 | G15: 0 | H15: 0
B16: Ekders Yer.Geç.Gör. - Gündüz | D16: =ROUND((VLOOKUP($B$7:$B$31,Kodlar!$A$2:$B$25,2,)*C16*$C$2),2) -> 0 | E16: 0 | F16: 0 | G16: 0 | H16: 0
B17: Ekders Yer.Geç.Gör. - Gece | D17: =ROUND((VLOOKUP($B$7:$B$31,Kodlar!$A$2:$B$25,2,)*C17*$C$2),2) -> 0 | E17: 0 | F17: 0 | G17: 0 | H17: 0
B18: Ekders Yer.Geç.Gör. - %25 Gündüz | D18: =ROUND((VLOOKUP($B$7:$B$31,Kodlar!$A$2:$B$25,2,)*C18*$C$2),2) -> 0 | E18: 0 | F18: 0 | G18: 0 | H18: 0
B19: Ekders Yer.Geç.Gör. - %25 Gece | D19: =ROUND((VLOOKUP($B$7:$B$31,Kodlar!$A$2:$B$25,2,)*C19*$C$2),2) -> 0 | E19: 0 | F19: 0 | G19: 0 | H19: 0
B20: Atış Eğitimi | D20: =ROUND((VLOOKUP($B$7:$B$31,Kodlar!$A$2:$B$25,2,)*C20*$C$2),2) -> 0 | E20: 0 | F20: 0 | G20: 0 | H20: 0
B21: Cezaevleri Eğitim Merkezi - 160*Saat | D21: =ROUND((VLOOKUP($B$7:$B$31,Kodlar!$A$2:$B$25,2,)*C21*$C$2),2) -> 0 | E21: 0 | F21: 0 | G21: 0 | H21: 0
B22: Takviye kursu(Gündüz) | D22: =ROUND((VLOOKUP($B$7:$B$31,Kodlar!$A$2:$B$25,2,)*C22*$C$2),2) -> 0 | E22: 0 | F22: 0 | G22: 0 | H22: 0
B23: Takviye kursu(Haftasonu/Gece) | D23: =ROUND((VLOOKUP($B$7:$B$31,Kodlar!$A$2:$B$25,2,)*C23*$C$2),2) -> 0 | E23: 0 | F23: 0 | G23: 0 | H23: 0
B24: Belleticilik %25 Fazla | D24: =ROUND((VLOOKUP($B$7:$B$31,Kodlar!$A$2:$B$25,2,)*C24*$C$2),2) -> 0 | E24: 0 | F24: 0 | G24: 0 | H24: 0
B25: Nöbet Görevi | D25: =ROUND((VLOOKUP($B$7:$B$31,Kodlar!$A$2:$B$25,2,)*C25*$C$2),2) -> 0 | E25: 0 | F25: 0 | G25: 0 | H25: 0
B26: Salon Başkanı | D26: =ROUND((VLOOKUP($B$7:$B$31,Kodlar!$A$2:$B$25,2,)*C26*$C$2),2) -> 0 | E26: 0 | F26: 0 | G26: 0 | H26: 0
B27: Gözetmen | D27: =ROUND((VLOOKUP($B$7:$B$31,Kodlar!$A$2:$B$25,2,)*C27*$C$2),2) -> 0 | E27: 0 | F27: 0 | G27: 0 | H27: 0
B28: Yedek Gözetmen | D28: =ROUND((VLOOKUP($B$7:$B$31,Kodlar!$A$2:$B$25,2,)*C28*$C$2),2) -> 0 | E28: 0 | F28: 0 | G28: 0 | H28: 0
B29: Yardımcı Engelli Gözetmen | D29: =ROUND((VLOOKUP($B$7:$B$31,Kodlar!$A$2:$B$25,2,)*C29*$C$2),2) -> 0 | E29: 0 | F29: 0 | G29: 0 | H29: 0
B30: Bina Sınav Komisyonu Başkanı | D30: =ROUND((VLOOKUP($B$7:$B$31,Kodlar!$A$2:$B$25,2,)*C30*$C$2),2) -> 0 | E30: 0 | F30: 0 | G30: 0 | H30: 0
B31: Bina Sınav Komisyonu Üyesi | D31: =ROUND((VLOOKUP($B$7:$B$31,Kodlar!$A$2:$B$30,2,)*C31*$C$2),2) -> 0 | E31: 0 | F31: 0 | G31: 0 | H31: 0
B32: GENEL TOPLAM | D32: =SUM(D7:D31) -> 1763.96 | E32: =SUM(E7:E31) -> 264.59 | F32: 13.39 | G32: 277.98 | H32: 1485.98

Sheet Sözleşmeli
B1: Sözleşmeli Öğretmenlerin Ek Ders Ücreti Hesaplama Programı-V.1.0
B2: Maaş Katsayısı | C2: =VLOOKUP(J2,Katsayı!A2:B400,2) -> 0.165786 | H2: Ait Olduğu Ay/Yıl | J2: 2021-01-01
B3: Gelir Vergisi % | C3: 0.15
B4: Damga Vergisi(Binde) | C4: 7.59
B6: EK DERS ÜCRETİ TİPİ | C6: EK DERS SAATİ | D6: BRÜT EKDERS | E6: SGK DEV.KAT. %20,5 | F6: SGK KİŞİ KES. %14 | G6: GELİR VERGİSİ | H6: DAMGA VERGİSİ | I6: KESİNTİ TOPLAMI | J6: NET EKDERS
B7: Gündüz | C7: 100 | D7: =ROUND((VLOOKUP($B$7:$B$31,Kodlar!$A$2:$B$25,2,)*C7*$C$2),2) -> 2321 | E7: =ROUND((D7*0.205),2) -> 475.81 | F7: =ROUND((D7*0.14),2) -> 324.94 | G7: =ROUND(((D7-F7)*$C$3),2) -> 299.41 | H7: =ROUND(((D7*$C$4)/1000),2) -> 17.62 | I7: =SUM(E7:H7) -> 1117.78 | J7: =D7+E7-I7 -> 1679.03
B8: Gece | D8: =ROUND((VLOOKUP($B$7:$B$31,Kodlar!$A$2:$B$25,2,)*C8*$C$2),2) -> 0 | E8: =ROUND((D8*0.205),2) -> 0 | F8: =ROUND((D8*0.14),2) -> 0 | G8: =ROUND(((D8-F8)*$C$3),2) -> 0 | H8: =ROUND(((D8*$C$4)/1000),2) -> 0 | I8: =SUM(E8:H8) -> 0 | J8: =D8+E8-I8 -> 0
B9: Gündüz (Yüksek Lisans) | D9: =ROUND((VLOOKUP($B$7:$B$31,Kodlar!$A$2:$B$25,2,)*C9*$C$2),2) -> 0 | E9: 0 | F9: 0 | G9: 0 | H9: 0 | I9: 0 | J9: 0
B10: %25 Fazla Gündüz | D10: =ROUND((VLOOKUP($B$7:$B$31,Kodlar!$A$2:$B$25,2,)*C10*$C$2),2) -> 0 | E10: 0 | F10: 0 | G10: 0 | H10: 0 | I10: 0 | J10: 0
B11: %25 Fazla Gece | D11: =ROUND((VLOOKUP($B$7:$B$31,Kodlar!$A$2:$B$25,2,)*C11*$C$2),2) -> 0 | E11: 0 | F11: 0 | G11: 0 | H11: 0 | I11: 0 | J11: 0
B12: Belleticilik | D12: =ROUND((VLOOKUP($B$7:$B$31,Kodlar!$A$2:$B$25,2,)*C12*$C$2),2) -> 0 | E12: 0 | F12: 0 | G12: 0 | H12: 0 | I12: 0 | J12: 0
B13: Sınav Görevi | D13: =ROUND((VLOOKUP($B$7:$B$31,Kodlar!$A$2:$B$25,2,)*C13*$C$2),2) -> 0 | E13: 0 | F13: 0 | G13: 0 | H13: 0 | I13: 0 | J13: 0
B14: Egzersiz | D14: =ROUND((VLOOKUP($B$7:$B$31,Kodlar!$A$2:$B$25,2,)*C14*$C$2),2) -> 0 | E14: 0 | F14: 0 | G14: 0 | H14: 0 | I14: 0 | J14: 0
B15: Hizmetiçi | D15: =ROUND((VLOOKUP($B$7:$B$31,Kodlar!$A$2:$B$25,2,)*C15*$C$2),2) -> 0 | E15: 0 | F15: 0 | G15: 0 | H15: 0 | I15: 0 | J15: 0
B16: Ekders Yer.Geç.Gör. - Gündüz | D16: =ROUND((VLOOKUP($B$7:$B$31,Kodlar!$A$2:$B$25,2,)*C16*$C$2),2) -> 0 | E16: 0 | F16: 0 | G16: 0 | H16: 0 | I16: 0 | J16: 0
B17: Ekders Yer.Geç.Gör. - Gece | D17: =ROUND((VLOOKUP($B$7:$B$31,Kodlar!$A$2:$B$25,2,)*C17*$C$2),2) -> 0 | E17: 0 | F17: 0 | G17: 0 | H17: 0 | I17: 0 | J17: 0
B18: Ekders Yer.Geç.Gör. - %25 Gündüz | D18: =ROUND((VLOOKUP($B$7:$B$31,Kodlar!$A$2:$B$25,2,)*C18*$C$2),2) -> 0 | E18: 0 | F18: 0 | G18: 0 | H18: 0 | I18: 0 | J18: 0
B19: Ekders Yer.Geç.Gör. - %25 Gece | D19: =ROUND((VLOOKUP($B$7:$B$31,Kodlar!$A$2:$B$25,2,)*C19*$C$2),2) -> 0 | E19: 0 | F19: 0 | G19: 0 | H19: 0 | I19: 0 | J19: 0
B20: Atış Eğitimi | D20: =ROUND((VLOOKUP($B$7:$B$31,Kodlar!$A$2:$B$25,2,)*C20*$C$2),2) -> 0 | E20: 0 | F20: 0 | G20: 0 | H20: 0 | I20: 0 | J20: 0
B21: Cezaevleri Eğitim Merkezi - 160*Saat | D21: =ROUND((VLOOKUP($B$7:$B$31,Kodlar!$A$2:$B$25,2,)*C21*$C$2),2) -> 0 | E21: 0 | F21: 0 | G21: 0 | H21: 0 | I21: 0 | J21: 0
B22: Takviye kursu(Gündüz) | D22: =ROUND((VLOOKUP($B$7:$B$31,Kodlar!$A$2:$B$25,2,)*C22*$C$2),2) -> 0 | E22: 0 | F22: 0 | G22: 0 | H22: 0 | I22: 0 | J22: 0
B23: Takviye kursu(Haftasonu/Gece) | D23: =ROUND((VLOOKUP($B$7:$B$31,Kodlar!$A$2:$B$25,2,)*C23*$C$2),2) -> 0 | E23: 0 | F23: 0 | G23: 0 | H23: 0 | I23: 0 | J23: 0
B24: Belleticilik %25 Fazla | D24: =ROUND((VLOOKUP($B$7:$B$31,Kodlar!$A$2:$B$25,2,)*C24*$C$2),2) -> 0 | E24: 0 | F24: 0 | G24: 0 | H24: 0 | I24: 0 | J24: 0
B25: Nöbet Görevi | D25: =ROUND((VLOOKUP($B$7:$B$31,Kodlar!$A$2:$B$25,2,)*C25*$C$2),2) -> 0 | E25: 0 | F25: 0 | G25: 0 | H25: 0 | I25: 0 | J25: 0
B26: Salon Başkanı | D26: =ROUND((VLOOKUP($B$7:$B$31,Kodlar!$A$2:$B$25,2,)*C26*$C$2),2) -> 0 | E26: 0 | F26: 0 | G26: 0 | H26: 0 | I26: 0 | J26: 0
B27: Gözetmen | D27: =ROUND((VLOOKUP($B$7:$B$31,Kodlar!$A$2:$B$25,2,)*C27*$C$2),2) -> 0 | E27: 0 | F27: 0 | G27: 0 | H27: 0 | I27: 0 | J27: 0
B28: Yedek Gözetmen | D28: =ROUND((VLOOKUP($B$7:$B$31,Kodlar!$A$2:$B$25,2,)*C28*$C$2),2) -> 0 | E28: 0 | F28: 0 | G28: 0 | H28: 0 | I28: 0 | J28: 0
B29: Yardımcı Engelli Gözetmen | D29: =ROUND((VLOOKUP($B$7:$B$31,Kodlar!$A$2:$B$25,2,)*C29*$C$2),2) -> 0 | E29: 0 | F29: 0 | G29: 0 | H29: 0 | I29: 0 | J29: 0
B30: Bina Sınav Komisyonu Başkanı | D30: =ROUND((VLOOKUP($B$7:$B$31,Kodlar!$A$2:$B$25,2,)*C30*$C$2),2) -> 0 | E30: 0 | F30: 0 | G30: 0 | H30: 0 | I30: 0 | J30: 0
B31: Bina Sınav Komisyonu Üyesi | D31: =ROUND((VLOOKUP($B$7:$B$31,Kodlar!$A$2:$B$30,2,)*C31*$C$2),2) -> 0 | E31: 0 | F31: 0 | G31: 0 | H31: 0 | I31: 0 | J31: 0
B32: GENEL TOPLAM | D32: =SUM(D7:D31) -> 2321 | G32: =SUM(G7:G31) -> 299.41 | H32: 17.62 | I32: 1117.78 | J32: 1679.03

Sheet Katsayı
A1: Ay/Yıl | B1: KATSAYILAR
A2: 2001-01-01 | B2: 0.01824
A3: 2001-02-01 | B3: 0.01824
A4: 2001-03-01 | B4: 0.01824
A5: 2001-04-01 | B5: 0.0187
A6: 2001-05-01 | B6: 0.0206
A7: 2001-06-01 | B7: 0.02165
A8: 2001-07-01 | B8: 0.02165
A9: 2001-08-01 | B9: 0.02165
A10: 2001-09-01 | B10: 0.02355
A11: 2001-10-01 | B11: 0.02492
A12: 2001-11-01 | B12: 0.02642
A13: 2001-12-01 | B13: 0.02753
A14: 2002-01-01 | B14: 0.0303
A15: 2002-02-01 | B15: 0.0303
A16: 2002-03-01 | B16: 0.0303
A17: 2002-04-01 | B17: 0.0303
A18: 2002-05-01 | B18: 0.03106
A19: 2002-06-01 | B19: 0.03106
A20: 2002-07-01 | B20: 0.032605
A21: 2002-08-01 | B21: 0.032605
A22: 2002-09-01 | B22: 0.032605
A23: 2002-10-01 | B23: 0.032605
A24: 2002-11-01 | B24: 0.032605
A25: 2002-12-01 | B25: 0.032605
A26: 2003-01-01 | B26: 0.0343
A27: 2003-02-01 | B27: 0.0343
A28: 2003-03-01 | B28: 0.0343
A29: 2003-04-01 | B29: 0.0343
A30: 2003-05-01 | B30: 0.0343
A31: 2003-06-01 | B31: 0.0343
A32: 2003-07-01 | B32: 0.0343
A33: 2003-08-01 | B33: 0.0343
A34: 2003-09-01 | B34: 0.0343
A35: 2003-10-01 | B35: 0.0343
A36: 2003-11-01 | B36: 0.0343
A37: 2003-12-01 | B37: 0.0343
A38: 2004-01-01 | B38: 0.03642
A39: 2004-02-01 | B39: 0.03642
A40: 2004-03-01 | B40: 0.03642
A41: 2004-04-01 | B41: 0.03642
A42: 2004-05-01 | B42: 0.03642
A43: 2004-06-01 | B43: 0.03642
A44: 2004-07-01 | B44: 0.03861
A45: 2004-08-01 | B45: 0.03861
A46: 2004-09-01 | B46: 0.03861
A47: 2004-10-01 | B47: 0.03861
A48: 2004-11-01 | B48: 0.03861
A49: 2004-12-01 | B49: 0.03861
A50: 2005-01-01 | B50: 0.0401
A51: 2005-02-01 | B51: 0.0401
A52: 2005-03-01 | B52: 0.0401
A53: 2005-04-01 | B53: 0.0401
A54: 2005-05-01 | B54: 0.0401
A55: 2005-06-01 | B55: 0.0401
A56: 2005-07-01 | B56: 0.0416
A57: 2005-08-01 | B57: 0.0416
A58: 2005-09-01 | B58: 0.0416
A59: 2005-10-01 | B59: 0.0416
A60: 2005-11-01 | B60: 0.0416
A61: 2005-12-01 | B61: 0.0416
A62: 2006-01-01 | B62: 0.04265
A63: 2006-02-01 | B63: 0.04265
A64: 2006-03-01 | B64: 0.04265
A65: 2006-04-01 | B65: 0.04265
A66: 2006-05-01 | B66: 0.04265
A67: 2006-06-01 | B67: 0.04265
A68: 2006-07-01 | B68: 0.04373
A69: 2006-08-01 | B69: 0.04373
A70: 2006-09-01 | B70: 0.044745
A71: 2006-10-01 | B71: 0.044745
A72: 2006-11-01 | B72: 0.044745
A73: 2006-12-01 | B73: 0.044745
A74: 2007-01-01 | B74: 0.046985
A75: 2007-02-01 | B75: 0.046985
A76: 2007-03-01 | B76: 0.046985
A77: 2007-04-01 | B77: 0.046985
A78: 2007-05-01 | B78: 0.046985
A79: 2007-06-01 | B79: 0.046985
A80: 2007-07-01 | B80: 0.04835
A81: 2007-08-01 | B81: 0.04835
A82: 2007-09-01 | B82: 0.04835
A83: 2007-10-01 | B83: 0.04835
A84: 2007-11-01 | B84: 0.04835
A85: 2007-12-01 | B85: 0.04835
A86: 2008-01-01 | B86: 0.049486
A87: 2008-02-01 | B87: 0.049486
A88: 2008-03-01 | B88: 0.049486
A89: 2008-04-01 | B89: 0.049486
A90: 2008-05-01 | B90: 0.049486
A91: 2008-06-01 | B91: 0.049486
A92: 2008-07-01 | B92: 0.051448
A93: 2008-08-01 | B93: 0.051448
A94: 2008-09-01 | B94: 0.051448
A95: 2008-10-01 | B95: 0.051448
A96: 2008-11-01 | B96: 0.051448
A97: 2008-12-01 | B97: 0.051448
A98: 2009-01-01 | B98: 0.053505
A99: 2009-02-01 | B99: 0.053505
A100: 2009-03-01 | B100: 0.053505
A101: 2009-04-01 | B101: 0.053505
A102: 2009-05-01 | B102: 0.053505
A103: 2009-06-01 | B103: 0.053505
A104: 2009-07-01 | B104: 0.05592
A105: 2009-08-01 | B105: 0.05592
A106: 2009-09-01 | B106: 0.05592
A107: 2009-10-01 | B107: 0.05592
A108: 2009-11-01 | B108: 0.05592
A109: 2009-12-01 | B109: 0.05592
A110: 2010-01-01 | B110: 0.057383
A111: 2010-02-01 | B111: 0.057383
A112: 2010-03-01 | B112: 0.057383
A113: 2010-04-01 | B113: 0.057383
A114: 2010-05-01 | B114: 0.057383
A115: 2010-06-01 | B115: 0.057383
A116: 2010-07-01 | B116: 0.059445
A117: 2010-08-01 | B117: 0.059445
A118: 2010-09-01 | B118: 0.059445
A119: 2010-10-01 | B119: 0.059445
A120: 2010-11-01 | B120: 0.059445
A121: 2010-12-01 | B121: 0.059445
A122: 2011-01-01 | B122: 0.061954
A123: 2011-02-01 | B123: 0.061954
A124: 2011-03-01 | B124: 0.061954
A125: 2011-04-01 | B125: 0.061954
A126: 2011-05-01 | B126: 0.061954
A127: 2011-06-01 | B127: 0.061954
A128: 2011-07-01 | B128: 0.06446
A129: 2011-08-01 | B129: 0.06446
A130: 2011-09-01 | B130: 0.06446
A131: 2011-10-01 | B131: 0.06446
A132: 2011-11-01 | B132: 0.06446
A133: 2011-12-01 | B133: 0.06446
A134: 2012-01-01 | B134: 0.068835
A135: 2012-02-01 | B135: 0.068835
A136: 2012-03-01 | B136: 0.068835
A137: 2012-04-01 | B137: 0.068835
A138: 2012-05-01 | B138: 0.068835
A139: 2012-06-01 | B139: 0.068835
A140: 2012-07-01 | B140: 0.071589
A141: 2012-08-01 | B141: 0.071589
A142: 2012-09-01 | B142: 0.071589
A143: 2012-10-01 | B143: 0.071589
A144: 2012-11-01 | B144: 0.071589
A145: 2012-12-01 | B145: 0.071589
A146: 2013-01-01 | B146: 0.073837
A147: 2013-02-01 | B147: 0.073837
A148: 2013-03-01 | B148: 0.073837
A149: 2013-04-01 | B149: 0.073837
A150: 2013-05-01 | B150: 0.073837
A151: 2013-06-01 | B151: 0.073837
A152: 2013-07-01 | B152: 0.076791
A153: 2013-08-01 | B153: 0.076791
A154: 2013-09-01 | B154: 0.076791
A155: 2013-10-01 | B155: 0.076791
A156: 2013-11-01 | B156: 0.076791
A157: 2013-12-01 | B157: 0.076791
A158: 2014-01-01 | B158: 0.076998
A159: 2014-02-01 | B159: 0.076998
A160: 2014-03-01 | B160: 0.076998
A161: 2014-04-01 | B161: 0.076998
A162: 2014-05-01 | B162: 0.076998
A163: 2014-06-01 | B163: 0.076998
A164: 2014-07-01 | B164: 0.076998
A165: 2014-08-01 | B165: 0.076998
A166: 2014-09-01 | B166: 0.076998
A167: 2014-10-01 | B167: 0.076998
A168: 2014-11-01 | B168: 0.076998
A169: 2014-12-01 | B169: 0.076998
A170: 2015-01-01 | B170: 0.079308
A171: 2015-02-01 | B171: 0.079308
A172: 2015-03-01 | B172: 0.079308
A173: 2015-04-01 | B173: 0.079308
A174: 2015-05-01 | B174: 0.079308
A175: 2015-06-01 | B175: 0.079308
A176: 2015-07-01 | B176: 0.083084
A177: 2015-08-01 | B177: 0.083084
A178: 2015-09-01 | B178: 0.083084
A179: 2015-10-01 | B179: 0.083084
A180: 2015-11-01 | B180: 0.083084
A181: 2015-12-01 | B181: 0.083084
A182: 2016-01-01 | B182: 0.088817
A183: 2016-02-01 | B183: 0.088817
A184: 2016-03-01 | B184: 0.088817
A185: 2016-04-01 | B185: 0.088817
A186: 2016-05-01 | B186: 0.088817
A187: 2016-06-01 | B187: 0.088817
A188: 2016-07-01 | B188: 0.093259
A189: 2016-08-01 | B189: 0.093259
A190: 2016-09-01 | B190: 0.093259
A191: 2016-10-01 | B191: 0.093259
A192: 2016-11-01 | B192: 0.093259
A193: 2016-12-01 | B193: 0.093259
A194: 2017-01-01 | B194: 0.096058
A195: 2017-02-01 | B195: 0.096058
A196: 2017-03-01 | B196: 0.096058
A197: 2017-04-01 | B197: 0.096058
A198: 2017-05-01 | B198: 0.096058
A199: 2017-06-01 | B199: 0.096058
A200: 2017-07-01 | B200: 0.102706
... 200 more rows

Sheet Gelir V.
A1: GELİR VERGİSİ
A2: 0.15 | B2: 1. DİLİM
A3: 0.2 | B3: 2. DİLİM
A4: 0.27 | B4: 3. DİLİM
A5: 0.35 | B5: 4. DİLİM
A6: 0

Sheet Kodlar
A1: Veri Tipi | B1: GÖSTERGE | C1: S.N. | D1: Veri Tip Kodu
A2: Gündüz | B2: 140 | C2: 1 | D2: 101
A3: Gece | B3: 150 | C3: 2 | D3: 102
A4: Gündüz (Yüksek Lisans) | B4: 147 | C4: 3
A5: %25 Fazla Gündüz | B5: 175 | C5: 4 | D5: 103
A6: %25 Fazla Gece | B6: 187.5 | C6: 5 | D6: 104
A7: Belleticilik | B7: 140 | C7: 6 | D7: 106
A8: Sınav Görevi | B8: 140 | C8: 7 | D8: 107
A9: Egzersiz | B9: 140 | C9: 8 | D9: 108
A10: Hizmetiçi | B10: 140 | C10: 9 | D10: 109
A11: Ekders Yer.Geç.Gör. - Gündüz | B11: 140 | C11: 10 | D11: 110
A12: Ekders Yer.Geç.Gör. - Gece | B12: 150 | C12: 11 | D12: 111
A13: Ekders Yer.Geç.Gör. - %25 Gündüz | B13: 175 | C13: 12 | D13: 112
A14: Ekders Yer.Geç.Gör. - %25 Gece | B14: 187.5 | C14: 13 | D14: 113
A15: Atış Eğitimi | B15: 140 | C15: 14 | D15: 114
A16: Cezaevleri Eğitim Merkezi - 160*Saat | B16: 160 | C16: 15 | D16: 115
A17: Takviye kursu(Gündüz) | B17: 280 | C17: 16 | D17: 116
A18: Takviye kursu(Haftasonu/Gece) | B18: 300 | C18: 17 | D18: 117
A19: Belleticilik %25 Fazla | B19: 175 | C19: 18 | D19: 118
A20: Nöbet Görevi | B20: 140 | C20: 19 | D20: 119
A21: Salon Başkanı | B21: 1650 | C21: 20 | D21: 120
A22: Gözetmen | B22: 1600 | C22: 21 | D22: 121
A23: Yedek Gözetmen | B23: 1200 | C23: 22 | D23: 122
A24: Yardımcı Engelli Gözetmen | B24: 2000 | C24: 23 | D24: 123
A25: Bina Sınav Komisyonu Başkanı | B25: 1900 | C25: 24 | D25: 124
A26: Bina Sınav Komisyonu Üyesi | B26: 1700 | C26: 25 | D26: 125
